bitfinex/quotes_SOLUSD_20250421
["timestamp","ask_amount","ask_price","bid_price","bid_amount"]
[1745258047676,7.41619697,134.84,134.81,21.96474795]
[1745258048243,7.41586181,134.85,134.82,21.96474795]
[1745258049274,7.41586181,134.85,134.78,26.06900682]
[1745258049452,7.41586181,134.85,134.81,21.96474795]
[1745258051352,27.47835363,134.86,134.82,21.96474795]
[1745258051556,7.47835363,134.86,134.83,21.96474795]
[1745258052161,7.47835363,134.86,134.81,26.0674962]
[1745258052359,7.47835363,134.86,134.82,21.96474795]
[1745258052659,7.47835363,134.86,134.83,21.96474795]
[1745258053580,0.063,134.86,134.83,21.96474795]
[1745258055063,0.063,134.86,134.84,21.96474795]
[1745258055490,0.063,134.86,134.85,21.96474795]
[1745258055655,0.063,134.86,134.84,21.96474795]
[1745258056680,0.063,134.86,134.83,21.96474795]
[1745258057061,0.063,134.86,134.84,21.96474795]
[1745258059373,0.063,134.86,134.85,40.75655838]
[1745258059557,0.063,134.86,134.85,18.79181043]
[1745258059752,0.063,134.86,134.85,40.75655838]
[1745258060464,0.063,134.86,134.85,48.17220539]
[1745258063895,0.063,134.86,134.85,129.97220538]
[1745258066776,0.063,134.88,134.87,66.75655838]
[1745258067579,0.063,134.88,134.87,62.72130633]
[1745258067777,0.063,134.92,134.88,26.72821043]
[1745258067970,0.063,134.92,134.91,40.75655838]
[1745258068186,0.063,134.92,134.91,122.55655837]
[1745258068493,0.063,134.97,134.95,18.64964886]
[1745258068677,0.063,134.97,134.96,21.96474795]
[1745258069192,0.063,134.97,134.89,33.41338132]
[1745258069193,1.6584,134.96,134.89,33.41338132]
[1745258069397,21.96474795,134.93,134.89,26.0]
[1745258069568,6.28,134.95,134.9,21.96474795]
[1745258069887,21.96474795,134.95,134.9,21.96474795]
[1745258070281,21.96474795,134.95,134.89,33.41334465]
[1745258070466,21.96474795,134.95,134.9,21.96474795]
[1745258070667,7.41070105,134.94,134.9,21.96474795]
[1745258072303,21.96474795,134.92,134.88,26.0]
[1745258072809,41.96474795,134.94,134.89,21.96474795]
[1745258074196,7.41125027,134.93,134.89,21.96474795]
[1745258076904,7.41125027,134.93,134.9,21.96474795]
[1745258077095,7.41125027,134.93,134.89,21.96474795]
[1745258077288,7.41125027,134.93,134.88,26.0]
[1745258077603,29.37599822,134.93,134.88,47.96474795]
[1745258078996,7.41125027,134.93,134.89,21.96474795]
[1745258079499,7.41125027,134.93,134.9,21.96474795]
[1745258080592,7.41125027,134.93,134.88,26.0]
[1745258080786,7.41125027,134.93,134.9,21.96474795]
[1745258081501,7.41125027,134.93,134.88,26.0]
[1745258081703,7.41125027,134.93,134.9,21.96474795]
[1745258082806,7.41094492,134.94,134.91,21.96474795]
[1745258083680,7.41094492,134.94,134.9,14.05171684]
[1745258084195,7.41094492,134.94,134.89,18.79181043]
[1745258084384,7.41094492,134.94,134.9,14.05171684]
[1745258086890,14.05171684,134.92,134.86,107.79999999]
[1745258087100,14.05171684,134.91,134.86,40.05171684]
[1745258087490,14.05171684,134.9,134.85,14.05171684]
[1745258087708,14.05171684,134.9,134.85,18.79181043]
[1745258087904,14.05171684,134.9,134.85,44.79181043]
[1745258088412,14.05171684,134.9,134.85,44.64964886]
[1745258088702,14.05171684,134.91,134.86,14.05171684]
[1745258088903,7.41289844,134.9,134.86,14.05171684]
[1745258089109,7.41289844,134.9,134.87,14.05171684]
[1745258089311,7.41289844,134.9,134.87,21.96875576]
[1745258090817,7.41234897,134.91,134.87,21.96875576]
[1745258091017,7.41201009,134.92,134.89,21.96875576]
[1745258091212,7.41201009,134.92,134.88,21.96875576]
[1745258093114,29.38000603,134.93,134.88,21.96875576]
[1745258093906,7.41125027,134.93,134.88,21.96875576]
[1745258094107,29.38000603,134.93,134.88,21.96875576]
[1745258094403,21.96875576,134.92,134.87,18.79181043]
[1745258094594,21.96875576,134.92,134.87,40.76056619]
[1745258094910,21.96875576,134.92,134.87,21.96875576]
[1745258095412,7.41234897,134.91,134.86,7.41500199]
[1745258095597,7.41234897,134.91,134.87,21.96875576]
[1745258096217,7.41234897,134.91,134.89,21.96875576]
[1745258096396,25.93937596,134.93,134.89,21.96875576]
[1745258096590,47.90813172,134.93,134.88,21.96875576]
[1745258097002,21.96875576,134.92,134.87,21.96875576]
[1745258097204,21.96875576,134.92,134.86,29.38356936]
[1745258097402,21.96875576,134.91,134.86,21.96875576]
[1745258097704,21.96875576,134.91,134.85,74.17620898]
[1745258098609,7.41289844,134.9,134.86,21.96875576]
[1745258100215,49.3816542,134.9,134.85,21.96875576]
[1745258100423,67.9139003,134.9,134.85,21.96875576]
[1745258101827,69.4242003,134.9,134.84,103.76875575]
[1745258102023,21.96875576,134.89,134.84,103.76875575]
[1745258102216,21.96875576,134.89,134.84,21.96875576]
[1745258102521,21.96875576,134.89,134.83,47.96875576]
[1745258102722,21.96875576,134.87,134.82,0.03]
[1745258102912,41.96875576,134.88,134.82,21.99875576]
[1745258103915,7.41454734,134.87,134.82,21.99875576]
[1745258104112,29.3833031,134.87,134.82,21.99875576]
[1745258104701,21.96875576,134.86,134.82,0.03]
[1745258104898,21.96875576,134.85,134.82,0.03]
[1745258105103,21.96875576,134.84,134.82,0.03]
[1745258105999,7.41674701,134.83,134.82,0.03]
[1745258107831,29.38550277,134.83,134.82,0.03]
[1745258108044,49.38550277,134.83,134.82,0.03]
[1745258108211,49.52766434,134.83,134.82,0.03]
[1745258109100,131.32766434,134.83,134.82,0.03]
[1745258110307,157.32766434,134.83,134.81,0.03]
[1745258110512,21.96875576,134.82,134.81,0.03]
[1745258112323,29.38605289,134.82,134.81,0.03]
[1745258114209,7.41729713,134.82,134.81,0.03]
[1745258114431,29.38605289,134.82,134.81,0.03]
[1745258116324,7.41729713,134.82,134.81,0.03]
[1745258117344,29.38605289,134.82,134.81,0.03]
[1745258117832,21.49719425,134.82,134.81,0.03]
[1745258118130,7.41729713,134.82,134.81,0.03]
[1745258118929,21.49719425,134.82,134.81,0.03]
[1745258120325,7.41729713,134.82,134.81,0.03]
[1745258120532,21.49719425,134.82,134.81,0.03]
[1745258120933,7.41729713,134.82,134.81,0.03]
[1745258121142,89.21698241,134.83,134.81,0.03]
[1745258122302,14.07989712,134.82,134.81,0.03]
[1745258122731,89.21698241,134.83,134.81,0.03]
[1745258123445,103.29687953,134.83,134.81,0.03]
[1745258123614,109.21698241,134.83,134.81,0.03]
[1745258124539,20.0,134.85,134.81,0.03]
[1745258124852,41.49577894,134.85,134.81,0.03]
[1745258125016,14.07989712,134.84,134.81,0.03]
[1745258125727,60.03489647,134.85,134.81,0.03]
[1745258128643,14.07989712,134.83,134.81,0.03]
[1745258129237,7.41729713,134.82,134.81,0.03]
[1745258131354,7.41674701,134.83,134.81,0.03]
[1745258134061,27.41674701,134.83,134.81,0.03]
[1745258134938,41.49664413,134.83,134.81,0.03]
[1745258135338,14.07989712,134.82,134.81,0.03]
[1745258135649,41.49664413,134.83,134.81,0.03]
[1745258136855,27.41674701,134.83,134.81,0.03]
[1745258137061,7.41674701,134.83,134.81,0.03]
[1745258137263,7.41674701,134.83,134.81,14.10989712]
[1745258137445,38.53911753,134.85,134.81,14.10989712]
[1745258137446,7.41645709,134.84,134.82,14.07989712]
[1745258137642,7.41509713,134.86,134.83,14.07989712]
[1745258137856,7.41478171,134.87,134.85,14.07989712]
[1745258138658,7.41399762,134.88,134.85,14.07989712]
[1745258140265,0.063,134.89,134.87,14.07989712]
[1745258140455,0.063,134.89,134.88,14.07989712]
[1745258144862,0.063,134.89,134.88,46.45650517]
[1745258152278,0.063,134.89,134.88,102.77609365]
[1745258153281,0.063,134.89,134.88,40.28570517]
[1745258153451,0.063,134.89,134.88,14.07989712]
[1745258154250,0.063,134.89,134.87,7.41430771]
[1745258154465,0.063,134.89,134.87,14.07989712]
[1745258155370,0.063,134.89,134.88,14.07989712]
[1745258158074,0.063,134.89,134.88,21.49389474]
[1745258159252,0.063,134.89,134.88,96.60529365]
[1745258159454,0.063,134.89,134.88,178.40529364]
[1745258160782,0.063,134.89,134.88,122.08570516]
[1745258161585,0.063,134.89,134.88,14.07989712]
[1745258162165,0.063,134.89,134.87,14.07989712]
[1745258162368,0.063,134.89,134.88,14.07989712]
[1745258163069,0.063,134.89,134.86,7.41481476]
[1745258163268,0.063,134.89,134.87,14.07989712]
[1745258164281,0.063,134.89,134.85,52.06501575]
[1745258164587,14.07989712,134.87,134.82,40.14663883]
[1745258164784,14.07989712,134.87,134.82,32.72954598]
[1745258165183,14.07989712,134.87,134.82,40.14681476]
[1745258165389,14.07989712,134.84,134.81,0.03]
[1745258166078,7.41674701,134.83,134.81,0.03]
[1745258166686,21.49664413,134.83,134.81,0.03]
[1745258167070,7.41674701,134.83,134.81,0.03]
[1745258168598,21.49664413,134.83,134.81,0.03]
[1745258169272,7.41674701,134.83,134.81,0.03]
[1745258169686,41.9949845,134.86,134.81,0.03]
[1745258169966,20.0,134.86,134.81,22.0249845]
[1745258170398,7.41583618,134.85,134.81,22.0249845]
[1745258171087,29.41082068,134.85,134.81,0.03]
[1745258171277,21.9949845,134.84,134.81,0.03]
[1745258172194,41.9949845,134.84,134.81,0.03]
[1745258172369,7.41729713,134.82,134.81,0.03]
[1745258173495,49.41228163,134.82,134.81,0.03]
[1745258174169,27.41729713,134.82,134.81,0.03]
[1745258174570,49.41228163,134.82,134.81,0.03]
[1745258175380,50.96528163,134.82,134.81,0.03]
[1745258176469,21.9949845,134.77,134.76,0.03]
[1745258176777,20.0,134.78,134.76,0.03]
[1745258176778,41.9949845,134.78,134.76,0.03]
[1745258177109,26.0,134.79,134.76,0.03]
[1745258177880,20.0,134.8,134.76,22.0249845]
[1745258178081,20.0,134.8,134.77,21.9949845]
[1745258178409,27.4187189,134.8,134.77,21.9949845]
[1745258178569,27.4187189,134.8,134.76,22.0249845]
[1745258178770,27.4187189,134.8,134.76,0.03]
[1745258178976,27.4187189,134.8,134.76,22.0249845]
[1745258179280,49.4137034,134.8,134.76,0.03]
[1745258179501,27.4187189,134.8,134.76,0.03]
[1745258179688,27.4187189,134.8,134.76,22.0249845]
[1745258179885,49.4137034,134.8,134.76,0.03]
[1745258180076,67.95969746,134.8,134.76,0.03]
[1745258180276,21.9949845,134.79,134.76,0.03]
[1745258180501,7.41949844,134.78,134.76,0.03]
[1745258180805,27.41949844,134.78,134.76,0.03]
[1745258181002,49.41448294,134.78,134.76,0.03]
[1745258181206,21.9949845,134.77,134.76,0.03]
[1745258181378,27.41949844,134.78,134.76,0.03]
[1745258181579,49.41448294,134.78,134.76,0.03]
[1745258181779,27.41949844,134.78,134.76,0.03]
[1745258182275,21.9949845,134.77,134.76,0.03]
[1745258182477,29.41503347,134.77,134.76,0.03]
[1745258185088,46.65503347,134.77,134.76,0.03]
[1745258185296,48.28473347,134.77,134.76,0.03]
[1745258187699,24.66004897,134.77,134.76,0.03]
[1745258190712,46.65503347,134.77,134.76,0.03]
[1745258191009,24.66004897,134.77,134.76,0.03]
[1745258191222,46.65503347,134.77,134.76,0.03]
[1745258192512,24.66004897,134.77,134.76,0.03]
[1745258192701,46.65503347,134.77,134.76,0.03]
[1745258193710,72.65503347,134.77,134.76,1e-08]
[1745258196905,50.66004897,134.77,134.76,1e-08]
[1745258197102,72.65503347,134.77,134.76,1e-08]
[1745258200518,20.0,134.76,134.75,1e-08]
[1745258200725,41.9949845,134.76,134.75,1e-08]
[1745258201018,20.0,134.76,134.75,1e-08]
[1745258201219,41.9949845,134.76,134.75,1e-08]
[1745258201391,49.41558408,134.76,134.75,1e-08]
[1745258207323,41.51754457,134.76,134.75,1e-08]
[1745258209316,60.309355,134.76,134.75,1e-08]
[1745258209516,20.0,134.72,134.71,0.03]
[1745258209719,34.09694499,134.72,134.71,0.03]
[1745258211715,41.51974784,134.72,134.71,0.03]
[1745258212920,27.42280285,134.72,134.71,0.03]
[1745258213151,7.42280285,134.72,134.71,0.03]
[1745258213700,41.51974784,134.72,134.71,0.03]
[1745258215815,27.42280285,134.72,134.71,0.03]
[1745258216125,41.51974784,134.72,134.71,0.03]
[1745258216323,58.90190941,134.72,134.71,1e-08]
[1745258216703,20.0,134.7,134.69,0.03]
[1745258216913,41.52084996,134.7,134.69,0.03]
[1745258217431,67.52084996,134.7,134.69,0.03]
[1745258218424,67.66301153,134.7,134.69,1e-08]
[1745258218947,67.52084996,134.7,134.69,1e-08]
[1745258219238,53.42390497,134.7,134.69,1e-08]
[1745258219408,67.52084996,134.7,134.69,1e-08]
[1745258219611,53.42390497,134.7,134.69,1e-08]
[1745258219812,67.52084996,134.7,134.69,1e-08]
[1745258221936,67.66301153,134.7,134.69,1e-08]
[1745258222320,149.46301153,134.7,134.69,1e-08]
[1745258224124,135.22390497,134.7,134.69,1e-08]
[1745258224640,149.32084996,134.7,134.69,1e-08]
[1745258226531,149.46301153,134.7,134.69,1e-08]
[1745258226721,158.28568505,134.7,134.69,1e-08]
[1745258227038,0.14216157,134.69,134.68,1e-08]
[1745258227349,103.46356271,134.69,134.68,1e-08]
[1745258227649,89.22445615,134.69,134.68,1e-08]
[1745258227821,103.32140114,134.69,134.68,1e-08]
[1745258232649,103.46356271,134.69,134.68,1e-08]
[1745258233145,107.08468374,134.69,134.68,1e-08]
[1745258234047,103.32140114,134.69,134.68,1e-08]
[1745258234929,40.31321157,134.69,134.68,1e-08]
[1745258235123,37.16473844,134.69,134.68,1e-08]
[1745258235457,54.91037456,134.69,134.68,1e-08]
[1745258236734,72.15037456,134.69,134.68,1e-08]
[1745258238555,46.0,134.65,134.63,0.03]
[1745258238754,14.09694499,134.64,134.63,0.03]
[1745258238936,46.0,134.65,134.63,0.03]
[1745258239448,14.09694499,134.64,134.63,0.03]
[1745258239826,21.52415829,134.64,134.63,0.03]
[1745258240552,57.55596872,134.64,134.63,1e-08]
[1745258242956,46.0,134.62,134.61,0.03]
[1745258243262,60.09694499,134.62,134.61,0.03]
[1745258243466,142.03910656,134.62,134.61,0.03]
[1745258243852,20.0,134.59,134.55,14.09694499]
[1745258244033,7.43052459,134.58,134.55,14.09694499]
[1745258244236,7.43052459,134.58,134.54,1.5106]
[1745258244736,7.43052459,134.58,134.55,14.09694499]
[1745258245576,18.57283431,134.61,134.57,14.09694499]
[1745258245577,7.42968048,134.6,134.57,14.09694499]
[1745258245936,7.42968048,134.6,134.56,14.09694499]
[1745258247170,7.42968048,134.6,134.54,8.94312079]
[1745258247538,7.42968048,134.6,134.56,14.09694499]
[1745258248177,27.42908309,134.61,134.57,14.09694499]
[1745258248463,41.52602808,134.61,134.54,1.5106]
[1745258248762,41.52602808,134.61,134.56,14.09694499]
[1745258249056,14.09694499,134.6,134.55,14.09694499]
[1745258249264,7.4299725,134.59,134.55,21.52912633]
[1745258249442,7.42967977,134.6,134.56,14.09694499]
[1745258250081,14.09694499,134.58,134.54,1.5106]
[1745258250256,14.09694499,134.57,134.54,1.5106]
[1745258250940,14.09694499,134.58,134.54,1.5106]
[1745258251141,7.43107676,134.57,134.54,1.5106]
[1745258253971,41.52802175,134.57,134.54,1.5106]
[1745258255761,27.43107676,134.57,134.54,1.5106]
[1745258256165,41.52802175,134.57,134.54,1.5106]
[1745258257076,27.43107676,134.57,134.54,1.5106]
[1745258257286,41.52802175,134.57,134.54,1.5106]
[1745258257477,27.43107676,134.57,134.54,1.5106]
[1745258258073,41.52802175,134.57,134.54,1.5106]
[1745258258270,27.43107676,134.57,134.54,1.5106]
[1745258258484,41.52802175,134.57,134.54,1.5106]
[1745258258980,60.10571365,134.57,134.54,1.5106]
[1745258259181,60.10571365,134.57,134.52,14.09694499]
[1745258259879,60.10571365,134.57,134.5,8.159]
[1745258260046,60.10571365,134.57,134.51,14.09694499]
[1745258260686,60.10571365,134.57,134.5,8.159]
[1745258260878,46.00876866,134.57,134.53,14.09694499]
[1745258261683,27.43107676,134.57,134.53,14.09694499]
[1745258264391,46.00876866,134.57,134.53,14.09694499]
[1745258265705,46.00876866,134.57,134.52,7.43357234]
[1745258265706,7.43107676,134.57,134.52,7.43357234]
[1745258265893,7.43107676,134.57,134.51,18.79181043]
[1745258266372,7.43107676,134.57,134.53,14.09694499]
[1745258266695,27.43107676,134.57,134.53,14.09694499]
[1745258266875,41.52802175,134.57,134.5,8.159]
[1745258267076,41.52802175,134.57,134.52,14.09694499]
[1745258267474,20.0,134.55,134.5,8.159]
[1745258267785,20.0,134.55,134.51,14.09694499]
[1745258268092,20.0,134.55,134.5,8.159]
[1745258268270,20.0,134.55,134.51,14.09694499]
[1745258269190,7.43273375,134.54,134.5,14.12694499]
[1745258269383,20.0,134.53,134.5,0.03]
[1745258270467,20.0,134.53,134.5,14.12694499]
[1745258271166,20.0,134.51,134.5,0.03]
[1745258271499,7.43383883,134.52,134.5,14.12694499]
[1745258271991,7.43383883,134.52,134.5,0.03]
[1745258273901,27.4334694,134.53,134.5,0.03]
[1745258276996,27.4334694,134.53,134.5,14.12694499]
[1745258277198,7.4334694,134.53,134.51,14.09694499]
[1745258277408,20.0,134.57,134.52,14.09694499]
[1745258277600,7.43190209,134.56,134.51,1.5174]
[1745258277806,7.43190209,134.56,134.52,14.09694499]
[1745258279213,34.09694499,134.55,134.51,1.5174]
[1745258279506,20.0,134.55,134.51,15.61434499]
[1745258280074,20.0,134.55,134.51,1.5174]
[1745258280269,34.09694499,134.55,134.51,1.5174]
[1745258280474,20.0,134.55,134.51,15.61434499]
[1745258280783,7.43190209,134.56,134.53,14.09694499]
[1745258281611,27.43133068,134.57,134.53,14.09694499]
[1745258281800,100.51578553,134.6,134.56,14.09694499]
[1745258281801,27.4294205,134.6,134.56,14.09694499]
[1745258281978,27.4294205,134.6,134.53,26.0]
[1745258282305,41.52636549,134.6,134.52,32.19578769]
[1745258282682,41.52636549,134.6,134.55,14.09694499]
[1745258282881,41.52636549,134.6,134.52,32.19578769]
[1745258283110,41.52636549,134.6,134.55,14.09694499]
[1745258283706,60.09991675,134.6,134.55,14.09694499]
[1745258283879,34.09694499,134.56,134.51,1.5174]
[1745258284080,34.09694499,134.56,134.51,15.61434499]
[1745258284315,34.09694499,134.56,134.51,1.5174]
[1745258284597,34.09694499,134.56,134.51,15.61434499]
[1745258284999,7.43218134,134.55,134.51,15.61434499]
[1745258285213,21.52912633,134.55,134.51,1.5174]
[1745258285606,21.52912633,134.55,134.5,0.03]
[1745258285607,34.09694499,134.53,134.5,0.03]
[1745258285780,20.0,134.53,134.5,0.03]
[1745258286586,34.09694499,134.53,134.5,0.03]
[1745258286802,20.0,134.53,134.5,0.03]
[1745258287196,7.43383883,134.52,134.5,0.03]
[1745258288220,7.43383883,134.52,134.5,14.12694499]
[1745258288404,7.43383883,134.52,134.5,0.03]
[1745258288590,7.43383883,134.52,134.51,14.09694499]
[1745258289104,7.43383883,134.52,134.5,0.03]
[1745258289288,20.0,134.51,134.5,0.03]
[1745258289807,7.43383883,134.52,134.5,14.12694499]
[1745258290103,7.43383883,134.52,134.5,0.03]
[1745258290309,7.43383883,134.52,134.5,14.12694499]
[1745258291905,126.38302002,134.54,134.51,14.09694499]
[1745258291906,7.43322722,134.54,134.51,14.09694499]
[1745258292125,7.43322722,134.54,134.52,14.09694499]
[1745258292413,7.43322722,134.54,134.5,0.03]
[1745258292720,7.43322722,134.54,134.5,14.12694499]
[1745258294297,7.43322722,134.54,134.51,14.09694499]
[1745258294615,27.43242607,134.55,134.52,14.09694499]
[1745258295738,7.4318545,134.56,134.54,14.09694499]
[1745258295928,7.4318545,134.56,134.53,14.09694499]
[1745258296620,27.43130522,134.57,134.54,14.09694499]
[1745258300821,7.43067064,134.58,134.56,14.09694499]
[1745258301594,7.43009171,134.59,134.57,14.09694499]
[1745258301996,7.4294205,134.6,134.57,14.09694499]
[1745258303323,7.4294205,134.6,134.54,7.43238187]
[1745258303503,7.4294205,134.6,134.56,14.09694499]
[1745258303703,7.4294205,134.6,134.54,7.43238187]
[1745258304008,7.4294205,134.6,134.56,14.09694499]
[1745258305001,7.4294205,134.6,134.57,14.09694499]
[1745258305301,7.4294205,134.6,134.56,14.09694499]
[1745258305501,7.4294205,134.6,134.54,7.43238187]
[1745258305735,7.4294205,134.6,134.56,14.09694499]
[1745258307132,7.4294205,134.6,134.57,14.09694499]
[1745258307427,7.4294205,134.6,134.56,14.09694499]
[1745258308433,7.4294205,134.6,134.57,14.09694499]
[1745258308813,7.4294205,134.6,134.54,7.43238187]
[1745258309126,7.4294205,134.6,134.56,14.09694499]
[1745258309426,7.4294205,134.6,134.53,26.22509668]
[1745258309605,20.0,134.59,134.55,14.09694499]
[1745258311127,7.43052459,134.58,134.55,14.09694499]
[1745258312314,7.43052459,134.58,134.54,14.09694499]
[1745258313116,7.43052459,134.58,134.55,14.09694499]
[1745258313725,7.43052459,134.58,134.52,9.01807739]
[1745258313929,7.43052459,134.58,134.55,14.09694499]
[1745258316534,7.43052459,134.58,134.52,9.01807739]
[1745258316718,7.43052459,134.58,134.55,14.09694499]
[1745258317038,7.43052459,134.58,134.52,9.01807739]
[1745258317218,7.43052459,134.58,134.55,14.09694499]
[1745258320552,7.43052459,134.58,134.52,7.43377739]
[1745258320723,7.43052459,134.58,134.54,14.09694499]
[1745258322550,7.43052459,134.58,134.56,14.09694499]
[1745258322715,7.43052459,134.58,134.51,26.0837832]
[1745258322916,7.43052459,134.58,134.55,14.09694499]
[1745258323637,7.43052459,134.58,134.54,14.09694499]
[1745258323834,7.43052459,134.58,134.55,14.09694499]
[1745258325238,7.43052459,134.58,134.56,14.09694499]
[1745258325817,27.4302018,134.59,134.57,14.09694499]
[1745258326718,27.4302018,134.59,134.53,9.06794726]
[1745258326937,27.4302018,134.59,134.57,14.09694499]
[1745258327443,27.4302018,134.59,134.54,7.43250564]
[1745258327631,27.4302018,134.59,134.57,14.09694499]
[1745258329246,20.0,134.64,134.58,14.09694499]
[1745258329431,27.42741498,134.64,134.62,14.09694499]
[1745258329641,7.42691499,134.65,134.63,14.09694499]
[1745258329845,45.52634445,134.66,134.63,14.09694499]
[1745258330024,45.52634445,134.66,134.64,14.09694499]
[1745258330348,0.063,134.67,134.65,14.09694499]
[1745258330548,0.063,134.67,134.61,18.64964886]
[1745258330845,0.063,134.67,134.64,14.09694499]
[1745258331042,0.063,134.67,134.65,14.09694499]
[1745258331343,0.063,134.67,134.63,7.42763301]
[1745258331552,0.063,134.67,134.66,14.09694499]
[1745258334750,0.063,134.67,134.66,21.52305519]
[1745258334934,0.063,134.67,134.66,66.31486562]
[1745258336847,0.063,134.67,134.66,26.0]
[1745258337053,0.063,134.67,134.66,47.52305519]
[1745258337557,0.063,134.67,134.66,14.09694499]
[1745258338551,0.063,134.67,134.66,32.88875542]
[1745258338959,0.063,134.67,134.66,40.31486562]
[1745258342462,0.063,134.67,134.66,14.09694499]
[1745258343134,0.063,134.67,134.65,14.09694499]
[1745258344458,0.063,134.67,134.66,14.09694499]
[1745258346863,0.063,134.67,134.63,8.94673472]
[1745258347046,0.063,134.67,134.66,14.09694499]
[1745258347744,0.063,134.67,134.63,8.94673472]
[1745258347945,0.063,134.67,134.65,14.09694499]
[1745258348748,0.063,134.67,134.66,14.09694499]
[1745258349940,20.0,134.66,134.58,20.17450092]
[1745258350142,34.09694499,134.66,134.59,7.4299725]
[1745258350346,34.09694499,134.66,134.61,14.09694499]
[1745258350641,34.09694499,134.66,134.58,90.82876373]
[1745258350848,34.09694499,134.66,134.61,14.09694499]
[1745258351257,7.42666171,134.65,134.61,14.09694499]
[1745258352740,27.42619648,134.66,134.61,14.09694499]
[1745258353064,27.42619648,134.66,134.64,14.09694499]
[1745258353065,7.42619648,134.66,134.64,14.09694499]
[1745258353464,7.42619648,134.66,134.6,0.14216157]
[1745258353465,7.42619648,134.66,134.61,26.0]
[1745258353769,7.42619648,134.66,134.63,14.09694499]
[1745258353945,7.42619648,134.66,134.61,26.0]
[1745258354140,7.42619648,134.66,134.63,14.09694499]
[1745258354363,7.48855877,134.67,134.63,14.09694499]
[1745258355148,0.063,134.67,134.65,14.09694499]
[1745258355669,0.063,134.67,134.66,14.09694499]
[1745258355844,0.063,134.67,134.65,14.09694499]
[1745258358369,0.063,134.67,134.63,14.09694499]
[1745258359281,7.42666171,134.65,134.62,14.09694499]
[1745258359865,20.0,134.66,134.63,14.09694499]
[1745258359866,7.42629428,134.66,134.63,14.09694499]
[1745258360049,7.42629428,134.66,134.64,14.09694499]
[1745258360250,7.42629428,134.66,134.63,14.09694499]
[1745258361167,7.48855877,134.67,134.63,14.09694499]
[1745258361775,7.48855877,134.67,134.61,7.42859202]
[1745258361979,7.48855877,134.67,134.63,14.09694499]
[1745258362153,7.48855877,134.67,134.64,14.09694499]
[1745258362657,0.063,134.67,134.65,14.09694499]
[1745258363874,0.063,134.67,134.64,14.09694499]
[1745258364576,0.063,134.67,134.63,14.09694499]
[1745258367675,0.063,134.67,134.65,14.09694499]
[1745258368071,0.063,134.67,134.66,14.09694499]
[1745258368266,0.063,134.67,134.65,14.09694499]
[1745258369493,0.063,134.67,134.66,14.09694499]
[1745258370674,0.063,134.67,134.66,58.88875542]
[1745258371072,0.063,134.67,134.66,44.79181043]
[1745258371275,0.063,134.67,134.66,58.88875542]
[1745258371484,0.063,134.67,134.66,66.31486562]
[1745258373181,0.063,134.7,134.69,44.64964886]
[1745258373394,0.063,134.7,134.69,60.24819385]
[1745258374574,0.063,134.7,134.69,41.59854499]
[1745258374799,0.063,134.7,134.69,40.09694499]
[1745258375094,0.063,134.7,134.69,47.52140114]
[1745258375293,0.063,134.7,134.69,66.31321157]
[1745258377767,0.063,134.7,134.69,148.11321156]
[1745258380601,0.063,134.7,134.69,95.89694498]
[1745258381586,0.063,134.7,134.69,81.79999999]
[1745258381880,0.063,134.7,134.69,95.89694498]
[1745258382381,0.063,134.7,134.69,103.32140113]
[1745258382590,0.063,134.7,134.69,122.11321156]
[1745258383807,0.063,134.7,134.69,95.89694498]
[1745258384384,0.063,134.7,134.67,26.0]
[1745258384592,14.15994499,134.7,134.63,7.42753704]
[1745258384776,0.063,134.7,134.65,14.09694499]
[1745258384977,0.063,134.7,134.66,14.09694499]
[1745258385697,7.48690497,134.7,134.66,14.09694499]
[1745258386506,7.48690497,134.7,134.67,14.09694499]
[1745258386872,7.48690497,134.7,134.66,14.09694499]
[1745258387682,7.48690497,134.7,134.65,7.42611809]
[1745258387903,0.063,134.7,134.68,14.09694499]
[1745258390598,0.063,134.7,134.67,14.09694499]
[1745258393984,14.15994499,134.7,134.64,0.14216157]
[1745258394190,7.42445615,134.69,134.66,14.09694499]
[1745258394790,7.42445615,134.69,134.64,26.2189447]
[1745258394988,7.42445615,134.69,134.65,14.09694499]
[1745258395311,40.14361239,134.7,134.65,14.09694499]
[1745258395511,34.09694499,134.69,134.64,14.09694499]